[Event "Niedersachsen-ch Meister 2024"]
[Site "Verden Aller"]
[Date "2024.01.04"]
[Round "2.12"]
[White "Renner, Kai"]
[Black "Oest, Thorsten"]
[Result "1/2-1/2"]
[ECO "B92"]
[WhiteElo "2153"]
[BlackElo "1981"]
[Annotator "RC"]
[PlyCount "38"]
[EventDate "2024.01.01"]
[EventType "swiss"]
[EventCountry "GER"]
[SourceTitle "playchess.com"]
[Source "ChessBase"]
[SourceQuality "1"]
[TimeControl "40/5400+30:1800+30"]

1. e4 {[%emt 0:00:02]} c5 {[%emt 0:00:06]} 2. Nf3 {[%emt 0:00:07]} d6 {[%emt 0:00:06]} 3. d4 {[%emt 0:00:07]} cxd4 {[%emt 0:00:07]} 4. Nxd4 {[%emt 0:00:06]} Nf6 {[%emt 0:00:07]} 5. Nc3 {[%emt 0:00:06]} a6 {[%emt 0:00:05]} 6. Be2 {[%emt 0:00:29]} e5 {[%emt 0:00:14]} 7. Nb3 {[%emt 0:00:19]} Be6 {[%emt 0:00:35]} 8. O-O {[%emt 0:02:05]} Be7 {[%emt 0:02:15]} 9. f4 {[%emt 0:00:42]} exf4 {[%emt 0:16:12]} 10. Bxf4 {[%emt 0:00:09]} O-O {[%emt 0:00:37]} 11. Qe1 {[%emt 0:02:06]} Nc6 {[%emt 0:07:21]} 12. Qg3 {[%emt 0:01:36]} Ne8 {[%emt 0:04:38]} 13. Rad1 {[%emt 0:02:39]} Bh4 {[%emt 0:06:02]} 14. Qd3 {[%emt 0:08:17]} Ne5 {[%emt 0:09:25]} 15. Qd2 {[%emt 0:07:18]} Rc8 {[%emt 0:13:32]} 16. Kh1 {[%emt 0:03:41]} Bf6 {[%emt 0:02:12]} 17. Be3 {[%emt 0:18:10]} Nc4 {[%emt 0:03:06]} 18. Bxc4 {[%emt 0:00:13]} Bxc4 {[%emt 0:00:11]} 19. Rf2 {[%emt 0:02:13]} Bxc3 {[%emt 0:00:49]} 1/2-1/2

[Event "Niedersachsen-ch Meister 2024"]
[Site "Verden Aller"]
[Date "2024.01.04"]
[Round "2.13"]
[White "Muecke, Leonard"]
[Black "Evering, Soeren"]
[Result "1-0"]
[ECO "C54"]
[WhiteElo "1694"]
[BlackElo "2034"]
[Annotator "RC"]
[PlyCount "151"]
[EventDate "2024.01.01"]
[EventType "swiss"]
[EventCountry "GER"]
[SourceTitle "playchess.com"]
[Source "ChessBase"]
[SourceQuality "1"]
[TimeControl "40/5400+30:1800+30"]

1. e4 {[%emt 0:00:04]} e5 {[%emt 0:00:35]} 2. Nf3 {[%emt 0:00:12]} Nc6 {[%emt 0:00:04]} 3. Bc4 {[%emt 0:00:09]} Nf6 {[%emt 0:00:03]} 4. d3 {[%emt 0:00:11]} Bc5 {[%emt 0:00:07]} 5. O-O {[%emt 0:00:19]} a6 {[%emt 0:00:15]} 6. c3 {[%emt 0:00:23]} d6 {[%emt 0:00:27]} 7. h3 {[%emt 0:00:09]} Ba7 {[%emt 0:00:27]} 8. Be3 {[%emt 0:00:48]} O-O {[%emt 0:07:52]} 9. a4 {[%emt 0:05:26]} h6 {[%emt 0:04:32]} 10. Nbd2 {[%emt 0:01:30]} Bxe3 {[%emt 0:06:58]} 11. fxe3 {[%emt 0:00:21]} Ne7 {[%emt 0:05:17]} 12. d4 {[%emt 0:12:46]} Ng6 {[%emt 0:04:04]} 13. d5 {[%emt 0:11:10]} c6 {[%emt 0:03:31]} 14. Qb3 {[%emt 0:03:12]} Qc7 {[%emt 0:12:24]} 15. a5 {[%emt 0:10:24]} Ne7 {[%emt 0:17:41]} 16. Kh1 {[%emt 0:04:55]} cxd5 {[%emt 0:02:33]} 17. exd5 {[%emt 0:04:41]} Nf5 {[%emt 0:09:29]} 18. Rfe1 {[%emt 0:04:53]} Ng3+ {[%emt 0:06:54]} 19. Kh2 {[%emt 0:00:22]} Nge4 {[%emt 0:00:07]} 20. Qc2 {[%emt 0:10:24]} Bf5 {[%emt 0:07:34]} 21. Bd3 {[%emt 0:01:14]} Nxd2 {[%emt 0:00:11]} 22. Nxd2 {[%emt 0:00:20]} Bxd3 {[%emt 0:05:55]} 23. Qxd3 {[%emt 0:00:14]} Rae8 {[%emt 0:00:54]} 24. e4 {[%emt 0:01:47]} Nh5 {[%emt 0:00:37]} 25. g3 {[%emt 0:01:09]} g6 {[%emt 0:01:43]} 26. Rf1 {[%emt 0:00:21]} Kh7 {[%emt 0:00:24]} 27. Nc4 {[%emt 0:08:58]} Qe7 {[%emt 0:01:34]} 28. Rf2 {[%emt 0:04:50]} Ng7 {[%emt 0:00:23]} 29. Ne3 {[%emt 0:01:43]} Qg5 {[%emt 0:01:39]} 30. Raf1 {[%emt 0:00:43]} f5 {[%emt 0:01:16]} 31. exf5 {[%emt 0:00:48]} gxf5 {[%emt 0:00:00]} 32. h4 {[%emt 0:09:07]} Qg6 {[%emt 0:00:01]} 33. b4 {[%emt 0:01:32]} Rf6 {[%emt 0:00:53]} 34. Ng2 {[%emt 0:00:35]} Ref8 {[%emt 0:00:32]} 35. c4 {[%emt 0:00:28]} Nh5 {[%emt 0:00:27]} 36. Re1 {[%emt 0:01:18]} Rg8 {[%emt 0:00:19]} 37. Re3 {[%emt 0:00:15]} Qg4 {[%emt 0:00:43]} 38. c5 {[%emt 0:00:19]} e4 {[%emt 0:00:13]} 39. Qc3 {[%emt 0:00:47]} Rfg6 {[%emt 0:00:44]} 40. cxd6 {[%emt 0:00:39]} f4 {[%emt 0:00:33]} 41. Nxf4 {[%emt 0:05:48]} Rf8 {[%emt 0:11:37]} 42. Nh3 {[%emt 0:13:02]} Nf6 {[%emt 0:10:53]} 43. Qe5 {[%emt 0:05:57]} Re8 {[%emt 0:02:16]} 44. Qf4 {[%emt 0:03:37]} Qxf4 {[%emt 0:00:53]} 45. Rxf4 {[%emt 0:00:47]} Ng4+ {[%emt 0:00:09]} 46. Rxg4 {[%emt 0:00:07]} Rxg4 {[%emt 0:00:03]} 47. Nf4 {[%emt 0:00:23]} Rd8 {[%emt 0:01:02]} 48. Rxe4 {[%emt 0:00:17]} Rxd6 {[%emt 0:00:04]} 49. Kg2 {[%emt 0:02:14]} Rg7 {[%emt 0:01:54]} 50. Kf3 {[%emt 0:00:13]} Rc7 {[%emt 0:02:44]} 51. Re6 {[%emt 0:01:36]} Rxe6 {[%emt 0:01:25]} 52. dxe6 {[%emt 0:00:17]} Kg7 {[%emt 0:01:34]} 53. Ke4 {[%emt 0:00:36]} Rc1 {[%emt 0:00:52]} 54. Kd5 {[%emt 0:00:33]} Kf8 {[%emt 0:01:31]} 55. Kd6 {[%emt 0:00:24]} Ke8 {[%emt 0:00:15]} 56. Nd5 {[%emt 0:00:32]} Rc6+ {[%emt 0:00:17]} 57. Ke5 {[%emt 0:00:11]} Rc1 {[%emt 0:00:18]} 58. Nf6+ {[%emt 0:00:33]} Kd8 {[%emt 0:00:20]} 59. Ng4 {[%emt 0:01:56]} Re1+ {[%emt 0:00:31]} 60. Kd5 {[%emt 0:01:05]} Ke7 {[%emt 0:00:59]} 61. Nxh6 {[%emt 0:00:21]} Rd1+ {[%emt 0:00:48]} 62. Kc5 {[%emt 0:00:45]} Kxe6 {[%emt 0:00:09]} 63. Kb6 {[%emt 0:00:20]} Rd7 {[%emt 0:00:30]} 64. g4 {[%emt 0:00:21]} Rg7 {[%emt 0:00:49]} 65. g5 {[%emt 0:00:24]} Ke5 {[%emt 0:00:02]} 66. Ng4+ {[%emt 0:00:13]} Kd4 {[%emt 0:00:32]} 67. b5 {[%emt 0:00:34]} axb5 {[%emt 0:00:25]} 68. Kxb5 {[%emt 0:00:11]} Rh7 {[%emt 0:00:57]} 69. Nh6 {[%emt 0:00:16]} Kd5 {[%emt 0:00:38]} 70. h5 {[%emt 0:00:55]} Ke6 {[%emt 0:00:04]} 71. Kb6 {[%emt 0:00:34]} Ke5 {[%emt 0:00:38]} 72. Ng4+ {[%emt 0:00:36]} Kf5 {[%emt 0:00:08]} 73. g6 {[%emt 0:01:15]} Rxh5 {[%emt 0:00:24]} 74. g7 {[%emt 0:00:36]} Rg5 {[%emt 0:00:06]} 75. g8=Q {[%emt 0:00:26]} Rxg8 {[%emt 0:00:05]} 76. Nh6+ {[%emt 0:00:03]} 1-0

[Event "Niedersachsen-ch Meister 2024"]
[Site "Verden Aller"]
[Date "2024.01.04"]
[Round "2.14"]
[White "Elsner, Robert"]
[Black "Hans, Julian"]
[Result "0-1"]
[ECO "D11"]
[WhiteElo "2030"]
[BlackElo "1925"]
[Annotator "NA RC"]
[PlyCount "94"]
[EventDate "2024.01.01"]
[EventType "swiss"]
[EventCountry "GER"]
[SourceTitle "playchess.com"]
[Source "ChessBase"]
[SourceQuality "1"]
[TimeControl "40/5400+30:1800+30"]

1. d4 {[%emt 0:00:01]} d5 {[%emt 0:00:08]} 2. c4 {[%emt 0:00:04]} c6 {[%emt 0:00:23]} 3. Nf3 {[%emt 0:00:17]} Nf6 {[%emt 0:00:08]} 4. g3 {[%emt 0:00:16]} dxc4 {[%emt 0:05:36]} 5. Bg2 {[%emt 0:00:13]} Bf5 {[%emt 0:00:54]} 6. O-O {[%emt 0:01:41]} e6 {[%emt 0:00:49]} 7. Nc3 {[%emt 0:09:59]} Nbd7 {[%emt 0:02:24]} 8. Nh4 {[%emt 0:00:54]} Bg6 {[%emt 0:01:39]} 9. Nxg6 {[%emt 0:03:50]} hxg6 {[%emt 0:00:18]} 10. e4 {[%emt 0:05:19]} e5 {[%emt 0:01:58]} 11. Be3 {[%emt 0:19:35]} Be7 {[%emt 0:06:33]} 12. Qe2 {[%emt 0:07:02]} O-O {[%emt 0:04:29]} 13. Rfd1 {[%emt 0:03:02]} Qa5 {[%emt 0:08:02]} 14. Qxc4 {[%emt 0:05:00]} Nb6 {[%emt 0:05:54]} 15. Qb3 {[%emt 0:05:03]} exd4 {[%emt 0:08:02]} 16. Bxd4 {[%emt 0:00:18]} Rad8 {[%emt 0:02:50]} 17. Qc2 {[%emt 0:15:33]} Bc5 {[%emt 0:06:49]} 18. Bxc5 {[%emt 0:03:15]} Qxc5 {[%emt 0:02:24]} 19. Qe2 {[%emt 0:00:03]} Rfe8 {[%emt 0:02:49]} 20. Rxd8 {[%emt 0:01:45]} Rxd8 {[%emt 0:00:07]} 21. Re1 {[%emt 0:01:03]} Nc4 {[%emt 0:03:52]} 22. Bf1 {[%emt 0:03:06]} Rd2 {[%emt 0:01:47]} 23. Qf3 {[%emt 0:00:09]} Ne5 {[%emt 0:12:35]} 24. Qg2 {[%emt 0:07:20]} Rxb2 {[%emt 0:03:20]} 25. Rd1 {[%emt 0:03:59]} Qxc3 {[%emt 0:19:10]} 26. Rd8+ {[%emt 0:00:05]} Kh7 {[%emt 0:00:00]} 27. Qh3+ {[%emt 0:00:05]} Nh5 {[%emt 0:00:00]} 28. Qc8 {[%emt 0:00:07]} Nf3+ {[%emt 0:00:00]} 29. Kh1 {[%emt 0:00:17]} Kh6 {[%emt 0:00:00]} 30. Rh8+ {[%emt 0:05:28]} Kg5 {[%emt 0:00:00]} 31. h4+ {[%emt 0:00:02]} Nxh4 {[%emt 0:00:00]} 32. f4+ {[%emt 0:01:01]} Nxf4 {[%emt 0:00:00]} 33. gxh4+ {[%emt 0:00:05]} Kf6 {[%emt 0:00:00]} 34. Qd8+ {[%emt 0:00:25]} Ke5 {[%emt 0:00:00]} 35. Qg5+ {[%emt 0:00:32]} Kxe4 {[%emt 0:00:00]} 36. Re8+ {[%emt 0:00:18]} Kf3 {[%emt 0:05:30]} 37. Qe7 {[%emt 0:00:44]} Qd2 {[%emt 0:00:00]} 38. Qe4+ {[%emt 0:00:59]} Kg3 {[%emt 0:00:00]} 39. Qe3+ {[%emt 0:00:33]} Qxe3 {[%emt 0:00:11]} 40. Rxe3+ {[%emt 0:00:04]} Kxh4 {[%emt 0:00:26]} 41. Re7 {[%emt 0:01:33]} f5 {[%emt 0:01:47]} 42. Rxg7 {[%emt 0:00:06]} g5 {[%emt 0:00:18]} 43. a4 {[%emt 0:00:14]} g4 {[%emt 0:00:18]} 44. a5 {[%emt 0:00:03]} Kg3 {[%emt 0:00:12]} 45. a6 {[%emt 0:00:08]} bxa6 {[%emt 0:00:16]} 46. Kg1 {[%emt 0:00:21]} Nh3+ {[%emt 0:00:48]} 47. Kh1 {[%emt 0:00:04]} Rh2# {[%emt 0:00:40]} 0-1

[Event "Niedersachsen-ch Meister 2024"]
[Site "Verden Aller"]
[Date "2024.01.05"]
[Round "3.1"]
[White "Nechitaylo, Nikita"]
[Black "Abel, Dennes"]
[Result "*"]
[ECO "E81"]
[WhiteElo "2221"]
[BlackElo "2417"]
[Annotator "RC"]
[PlyCount "75"]
[EventDate "2024.01.01"]
[EventType "swiss"]
[EventCountry "GER"]
[SourceTitle "playchess.com"]
[Source "ChessBase"]
[SourceQuality "1"]
[TimeControl "40/5400+30:1800+30"]

1. d4 {[%emt 0:00:08]} Nf6 {[%emt 0:02:50]} 2. c4 {[%emt 0:00:08]} g6 {[%emt 0:00:10]} 3. f3 {[%emt 0:00:03]} Bg7 {[%emt 0:01:12]} 4. e4 {[%emt 0:00:06]} d6 {[%emt 0:00:08]} 5. Be3 {[%emt 0:00:08]} O-O {[%emt 0:00:28]} 6. Nc3 {[%emt 0:00:09]} c5 {[%emt 0:00:42]} 7. dxc5 {[%emt 0:00:07]} dxc5 {[%emt 0:00:10]} 8. Qxd8 {[%emt 0:00:04]} Rxd8 {[%emt 0:00:09]} 9. Bxc5 {[%emt 0:00:03]} Nc6 {[%emt 0:00:20]} 10. Ba3 {[%emt 0:00:04]} a5 {[%emt 0:02:54]} 11. Rd1 {[%emt 0:00:25]} Be6 {[%emt 0:05:08]} 12. Nd5 {[%emt 0:00:26]} Nb4 {[%emt 0:00:12]} 13. Nxe7+ {[%emt 0:00:06]} Kh8 {[%emt 0:00:05]} 14. Rxd8+ {[%emt 0:00:05]} Rxd8 {[%emt 0:00:07]} 15. Nd5 {[%emt 0:00:10]} Nc2+ {[%emt 0:04:54]} 16. Kf2 {[%emt 0:02:33]} Nxa3 {[%emt 0:01:30]} 17. bxa3 {[%emt 0:00:06]} b5 {[%emt 0:00:13]} 18. Nh3 {[%emt 0:00:07]} bxc4 {[%emt 0:06:33]} 19. Bxc4 {[%emt 0:00:10]} Rc8 {[%emt 0:01:38]} 20. Bb3 {[%emt 0:01:31]} a4 {[%emt 0:00:45]} 21. Bxa4 {[%emt 1:34:21]} Nxd5 {[%emt 0:01:02]} 22. exd5 {[%emt 0:00:13]} Bxd5 {[%emt 0:00:05]} 23. Bb3 {[%emt 0:01:07]} Bxb3 {[%emt 1:10:45]} 24. axb3 {[%emt 0:00:09]} Rc2+ {[%emt 0:00:07]} 25. Kg3 {[%emt 0:19:24]} Be5+ {[%emt 0:00:19]} 26. f4 {[%emt 0:00:30]} Rc3+ {[%emt 0:00:20]} 27. Kg4 {[%emt 0:11:16]} Bf6 {[%emt 0:00:53]} 28. Ng5 {[%emt 0:00:12]} h5+ {[%emt 0:08:05]} 29. Kh4 {[%emt 0:00:11]} Rxb3 {[%emt 0:00:09]} 30. Rc1 {[%emt 1:05:28]} Rxa3 {[%emt 0:03:15]} 31. Rc7 {[%emt 0:59:07]} Kg8 {[%emt 0:04:00]} 32. g3 {[%emt 0:00:38]} Ra2 {[%emt 0:56:53]} 33. Kh3 {[%emt 0:57:38]} Bxg5 {[%emt 0:00:09]} 34. fxg5 {[%emt 0:00:07]} Rd2 {[%emt 0:03:47]} 35. Rc8+ {[%emt 0:03:22]} Kg7 {[%emt 0:00:13]} 36. Ra8 {[%emt 0:00:52]} Rd4 {[%emt 0:01:23]} 37. Kg2 {[%emt 0:01:09]} Rd2+ {[%emt 0:47:46]} 38. Kg1 {[%emt 0:01:16]} *

[Event "Niedersachsen-ch Meister 2024"]
[Site "Verden Aller"]
[Date "2024.01.05"]
[Round "3.2"]
[White "Stelmaszyk, Nico"]
[Black "Riemay, David"]
[Result "*"]
[ECO "B11"]
[WhiteElo "2363"]
[BlackElo "2213"]
[Annotator "RC"]
[PlyCount "37"]
[EventDate "2024.01.01"]
[EventType "swiss"]
[EventCountry "GER"]
[SourceTitle "playchess.com"]
[Source "ChessBase"]
[SourceQuality "1"]
[TimeControl "40/5400+30:1800+30"]

1. e4 {[%emt 0:00:03]} c6 {[%emt 0:00:24]} 2. Nf3 {[%emt 0:00:08]} d5 {[%emt 0:00:06]} 3. Nc3 {[%emt 0:00:04]} dxe4 {[%emt 0:00:57]} 4. Nxe4 {[%emt 0:00:05]} Nf6 {[%emt 0:00:06]} 5. Qe2 {[%emt 0:00:03]} Nxe4 {[%emt 0:00:53]} 6. Qxe4 {[%emt 0:00:06]} Nd7 {[%emt 0:00:06]} 7. Bc4 {[%emt 0:00:08]} Nf6 {[%emt 0:00:07]} 8. Ne5 {[%emt 1:33:53]} e6 {[%emt 0:00:07]} 9. Qf4 {[%emt 0:00:15]} Bd6 {[%emt 0:03:44]} 10. d4 {[%emt 0:00:07]} O-O {[%emt 0:01:00]} 11. O-O {[%emt 1:34:56]} Qc7 {[%emt 0:13:37]} 12. Re1 {[%emt 0:03:47]} c5 {[%emt 0:02:20]} 13. b3 {[%emt 1:20:58]} cxd4 {[%emt 0:04:15]} 14. Bb2 {[%emt 0:01:32]} Nd7 {[%emt 0:05:45]} 15. Bxd4 {[%emt 0:01:00]} Nxe5 {[%emt 1:04:33]} 16. Bxe5 {[%emt 0:00:31]} Bxe5 {[%emt 0:00:05]} 17. Rxe5 {[%emt 1:00:57]} Kh8 {[%emt 0:13:21]} 18. Bd3 {[%emt 0:05:33]} f6 {[%emt 0:09:27]} 19. Qb4 {[%emt 0:02:43]} *

[Event "Niedersachsen-ch Meister 2024"]
[Site "Verden Aller"]
[Date "2024.01.05"]
[Round "3.3"]
[White "Polster, Christian"]
[Black "Pubantz, Jan"]
[Result "*"]
[ECO "B12"]
[WhiteElo "2244"]
[BlackElo "2288"]
[Annotator "RC"]
[PlyCount "24"]
[EventDate "2024.01.01"]
[EventType "swiss"]
[EventCountry "GER"]
[SourceTitle "playchess.com"]
[Source "ChessBase"]
[SourceQuality "1"]
[TimeControl "40/5400+30:1800+30"]

1. e4 {[%emt 0:00:04]} c6 {[%emt 0:00:03]} 2. d4 {[%emt 0:00:08]} d5 {[%emt 0:00:04]} 3. f3 {[%emt 0:00:05]} Qb6 {[%emt 0:00:22]} 4. a4 {[%emt 0:00:15]} e5 {[%emt 0:03:38]} 5. c3 {[%emt 0:01:46]} a5 {[%emt 0:05:52]} 6. exd5 {[%emt 0:09:10]} exd4 {[%emt 0:06:40]} 7. Ne2 {[%emt 0:01:10]} dxc3 {[%emt 0:06:13]} 8. Nexc3 {[%emt 0:03:06]} Nf6 {[%emt 0:06:24]} 9. Qe2+ {[%emt 1:19:16]} Kd8 {[%emt 0:01:38]} 10. Qd3 {[%emt 0:00:26]} Bd7 {[%emt 0:13:44]} 11. Bg5 {[%emt 0:07:52]} cxd5 {[%emt 0:08:33]} 12. Nd2 {[%emt 1:00:47]} Na6 {[%emt 0:06:51]} *

[Event "Niedersachsen-ch Meister 2024"]
[Site "Verden Aller"]
[Date "2024.01.05"]
[Round "3.4"]
[White "Hampel, Felix"]
[Black "Mimkes, Antal"]
[Result "*"]
[ECO "A88"]
[WhiteElo "2294"]
[BlackElo "1823"]
[Annotator "RC"]
[PlyCount "48"]
[EventDate "2024.01.01"]
[EventType "swiss"]
[EventCountry "GER"]
[SourceTitle "playchess.com"]
[Source "ChessBase"]
[SourceQuality "1"]
[TimeControl "40/5400+30:1800+30"]

1. c4 {[%emt 0:00:03]} f5 {[%emt 0:01:00]} 2. Nf3 {[%emt 0:00:10]} Nf6 {[%emt 0:00:09]} 3. g3 {[%emt 0:00:06]} g6 {[%emt 0:00:08]} 4. Bg2 {[%emt 0:00:06]} Bg7 {[%emt 0:00:18]} 5. O-O {[%emt 0:00:10]} O-O {[%emt 0:00:22]} 6. d4 {[%emt 0:00:08]} d6 {[%emt 0:00:17]} 7. Nc3 {[%emt 0:00:06]} c6 {[%emt 0:00:13]} 8. d5 {[%emt 0:00:06]} e5 {[%emt 0:00:04]} 9. dxe6 {[%emt 0:00:06]} Bxe6 {[%emt 0:00:03]} 10. b3 {[%emt 0:00:09]} Na6 {[%emt 0:00:18]} 11. Ng5 {[%emt 0:00:10]} Bc8 {[%emt 1:33:08]} 12. Bb2 {[%emt 0:00:06]} h6 {[%emt 0:00:17]} 13. Nf3 {[%emt 0:00:13]} Be6 {[%emt 0:01:14]} 14. Qc2 {[%emt 0:00:23]} Qe7 {[%emt 0:01:22]} 15. Nh4 {[%emt 0:00:10]} Bf7 {[%emt 0:07:02]} 16. Rae1 {[%emt 0:00:16]} d5 {[%emt 0:03:32]} 17. cxd5 {[%emt 0:00:17]} cxd5 {[%emt 0:00:28]} 18. Qb1 {[%emt 0:00:09]} Rad8 {[%emt 0:07:44]} 19. Nb5 {[%emt 0:10:42]} Qd7 {[%emt 0:05:18]} 20. Qa1 {[%emt 0:08:47]} Be8 {[%emt 0:12:16]} 21. Nd4 {[%emt 0:02:29]} Ne4 {[%emt 0:02:59]} 22. Rd1 {[%emt 0:02:29]} Nac5 {[%emt 0:15:25]} 23. e3 {[%emt 0:04:31]} Qf7 {[%emt 0:08:13]} 24. Nhf3 {[%emt 0:10:07]} g5 {[%emt 0:06:33]} *

[Event "Niedersachsen-ch Meister 2024"]
[Site "Verden Aller"]
[Date "2024.01.05"]
[Round "3.5"]
[White "Tonndorf, Matthias"]
[Black "Knuedel, Torben"]
[Result "0-1"]
[ECO "A05"]
[WhiteElo "2184"]
[BlackElo "2287"]
[Annotator "RC"]
[PlyCount "132"]
[EventDate "2024.01.01"]
[EventType "swiss"]
[EventCountry "GER"]
[SourceTitle "playchess.com"]
[Source "ChessBase"]
[SourceQuality "1"]
[TimeControl "40/5400+30:1800+30"]

1. b3 {[%emt 0:00:09]} Nf6 {[%emt 0:00:52]} 2. Bb2 {[%emt 0:00:06]} e6 {[%emt 0:00:04]} 3. g3 {[%emt 0:00:37]} d5 {[%emt 0:00:25]} 4. Bg2 {[%emt 0:00:14]} Be7 {[%emt 0:00:10]} 5. e3 {[%emt 0:00:45]} O-O {[%emt 0:01:20]} 6. Nf3 {[%emt 0:01:32]} b6 {[%emt 0:00:35]} 7. O-O {[%emt 0:00:34]} Bb7 {[%emt 0:00:21]} 8. d3 {[%emt 0:04:25]} c5 {[%emt 0:02:07]} 9. Nbd2 {[%emt 0:00:29]} Nc6 {[%emt 0:00:17]} 10. Qe2 {[%emt 0:06:44]} Rc8 {[%emt 0:03:33]} 11. a3 {[%emt 0:05:57]} Rc7 {[%emt 0:02:04]} 12. e4 {[%emt 0:04:55]} d4 {[%emt 0:23:07]} 13. Ne1 {[%emt 0:10:49]} e5 {[%emt 0:03:19]} 14. f4 {[%emt 0:04:25]} b5 {[%emt 0:05:46]} 15. Bc1 {[%emt 0:24:18]} Bc8 {[%emt 0:05:30]} 16. f5 {[%emt 0:05:40]} Nd7 {[%emt 0:02:30]} 17. Ndf3 {[%emt 0:02:56]} c4 {[%emt 0:01:28]} 18. b4 {[%emt 0:01:51]} a5 {[%emt 0:03:00]} 19. bxa5 {[%emt 0:00:05]} Ba6 {[%emt 0:01:10]} 20. g4 {[%emt 0:00:39]} f6 {[%emt 0:04:26]} 21. h4 {[%emt 0:00:20]} b4 {[%emt 0:01:15]} 22. axb4 {[%emt 0:00:56]} Nxb4 {[%emt 0:03:45]} 23. Ba3 {[%emt 0:04:20]} cxd3 {[%emt 0:01:17]} 24. cxd3 {[%emt 0:00:10]} Rc3 {[%emt 0:00:20]} 25. Bxb4 {[%emt 0:02:19]} Bxb4 {[%emt 0:00:20]} 26. Nd2 {[%emt 0:04:21]} Nc5 {[%emt 0:02:02]} 27. Rf3 {[%emt 0:00:08]} Rf7 {[%emt 0:01:19]} 28. Rg3 {[%emt 0:00:02]} Nb3 {[%emt 0:12:59]} 29. Nxb3 {[%emt 0:00:55]} Rxb3 {[%emt 0:00:02]} 30. g5 {[%emt 0:05:17]} Bc3 {[%emt 0:02:12]} 31. g6 {[%emt 0:00:56]} Re7 {[%emt 0:01:41]} 32. Qa2 {[%emt 0:02:39]} Qb8 {[%emt 0:02:06]} 33. gxh7+ {[%emt 0:01:52]} Kxh7 {[%emt 0:00:23]} 34. Rd1 {[%emt 0:00:52]} Rb2 {[%emt 0:01:05]} 35. Qa3 {[%emt 0:01:45]} Qb4 {[%emt 0:00:31]} 36. Qxb4 {[%emt 0:00:16]} Rxb4 {[%emt 0:01:08]} 37. Bf1 {[%emt 0:01:45]} Reb7 {[%emt 0:00:56]} 38. Nf3 {[%emt 0:02:23]} Rb1 {[%emt 0:01:01]} 39. Rxb1 {[%emt 0:00:02]} Rxb1 {[%emt 0:00:06]} 40. Nh2 {[%emt 0:01:03]} Bxa5 {[%emt 0:01:53]} 41. Ng4 {[%emt 0:30:50]} Bd2 {[%emt 0:32:25]} 42. Rh3 {[%emt 0:00:00]} Bb5 {[%emt 0:00:00]} 43. Kg2 {[%emt 0:00:00]} Rb2 {[%emt 0:00:00]} 44. Kg1 {[%emt 0:00:00]} Bf4 {[%emt 0:00:00]} 45. Rf3 {[%emt 0:00:00]} Rd2 {[%emt 0:00:00]} 46. Rh3 {[%emt 0:00:00]} Ba4 {[%emt 0:00:00]} 47. Nh2 {[%emt 0:00:00]} Be3+ {[%emt 0:00:00]} 48. Kh1 {[%emt 0:00:00]} Bc2 {[%emt 0:00:00]} 49. Ng4 {[%emt 0:00:00]} Bxd3 {[%emt 0:00:00]} 50. Bxd3 {[%emt 0:00:00]} Rxd3 {[%emt 0:00:00]} 51. Kg2 {[%emt 0:00:00]} Rd2+ {[%emt 0:00:00]} 52. Kf3 {[%emt 0:00:00]} Bf4 {[%emt 0:00:00]} 53. Nf2 {[%emt 0:00:00]} Ra2 {[%emt 0:00:00]} 54. Nd3 {[%emt 0:00:00]} Be3 {[%emt 0:00:00]} 55. Rh1 {[%emt 0:00:00]} Rd2 {[%emt 0:00:00]} 56. Nc5 {[%emt 0:00:00]} Rf2+ {[%emt 0:00:00]} 57. Kg4 {[%emt 0:00:00]} Rc2 {[%emt 0:00:00]} 58. Ne6 {[%emt 0:00:00]} d3 {[%emt 0:00:00]} 59. Kf3 {[%emt 0:00:00]} Bb6 {[%emt 0:00:00]} 60. Rd1 {[%emt 0:00:00]} Rf2+ {[%emt 0:00:41]} 61. Kg3 {[%emt 0:01:03]} d2 {[%emt 0:00:56]} 62. Nf8+ {[%emt 0:01:21]} Kh6 {[%emt 0:00:35]} 63. Nd7 {[%emt 0:00:46]} Bd4 {[%emt 0:02:54]} 64. Rb1 {[%emt 0:00:35]} Re2 {[%emt 0:00:52]} 65. Rb8 {[%emt 0:00:21]} Re3+ {[%emt 0:00:19]} 66. Kg2 {[%emt 0:00:41]} Kh5 {[%emt 0:00:30]} 0-1